[Event "58th Akiba Rubinstein D 2022"]
[Site "Polanica-Zdroj"]
[Date "2022.08.15"]
[Round "3.28"]
[White "Gorecka, Zuzanna"]
[Black "Klisowski, Bartosz"]
[Result "0-1"]
[ECO "A15"]
[WhiteElo "1287"]
[BlackElo "1595"]
[Annotator "NA RC"]
[PlyCount "146"]
[EventDate "2022.08.13"]
[EventCountry "POL"]
[SourceTitle "playchess.com"]
[Source "ChessBase"]
[SourceQuality "1"]
[TimeControl "40/5400+30:1800+30"]

1. c4 {[%emt 0:00:01]} Nf6 {[%emt 0:00:13]} 2. Nf3 {[%emt 0:00:07]} g6 {[%emt 0:00:51]} 3. d4 {[%emt 0:00:07]} c5 {[%emt 0:00:48]} 4. Nc3 {[%emt 0:00:43]} cxd4 {[%emt 0:00:26]} 5. Qxd4 {[%emt 0:00:08]} Nc6 {[%emt 0:00:59]} 6. Qd1 {[%emt 0:02:30]} Bg7 {[%emt 0:01:43]} 7. g3 {[%emt 0:00:28]} O-O {[%emt 0:01:39]} 8. Bg2 {[%emt 0:00:07]} d6 {[%emt 0:00:20]} 9. O-O {[%emt 0:00:23]} h6 {[%emt 0:04:54]} 10. Rb1 {[%emt 0:02:35]} Bf5 {[%emt 0:01:18]} 11. Ra1 {[%emt 0:00:40]} Rc8 {[%emt 0:02:58]} 12. Nh4 {[%emt 0:02:33]} Be6 {[%emt 0:00:31]} 13. Nd5 Kh7 {[%emt 0:10:17]} 14. f4 {[%emt 0:06:22]} Bxd5 {[%emt 0:05:17]} 15. cxd5 {[%emt 0:00:22]} Qb6+ {[%emt 0:00:07]} 16. Kh1 {[%emt 0:00:44]} Nd4 {[%emt 0:05:33]} 17. h3 {[%emt 0:07:08]} Nh5 {[%emt 0:08:23]} 18. Kh2 {[%emt 0:03:59]} Nc2 {[%emt 0:09:57]} 19. Rb1 {[%emt 0:01:11]} Bf6 {[%emt 0:00:26]} 20. Nf3 {[%emt 0:00:24]} Ne3 {[%emt 0:00:35]} 21. Bxe3 {[%emt 0:00:17]} Qxe3 {[%emt 0:02:18]} 22. b3 {[%emt 0:04:16]} Rc3 {[%emt 0:00:30]} 23. Qe1 {[%emt 0:08:29]} Rc2 {[%emt 0:03:21]} 24. Qf2 {[%emt 0:07:44]} Qxe2 {[%emt 0:02:40]} 25. Qxe2 {[%emt 0:01:17]} Rxe2 {[%emt 0:00:05]} 26. a3 {[%emt 0:02:14]} Ra2 {[%emt 0:01:22]} 27. a4 {[%emt 0:00:07]} Rc8 {[%emt 0:00:08]} 28. Ne1 {[%emt 0:01:12]} Rc3 {[%emt 0:02:23]} 29. Rf3 Rxf3 {[%emt 0:03:37]} 30. Nxf3 {[%emt 0:01:13]} Ng7 {[%emt 0:00:24]} 31. g4 {[%emt 0:00:34]} Ne8 {[%emt 0:02:29]} 32. Kg3 {[%emt 0:01:26]} Nc7 {[%emt 0:00:28]} 33. Ne1 {[%emt 0:00:54]} Rd2 {[%emt 0:01:59]} 34. Rc1 {[%emt 0:01:53]} Na6 {[%emt 0:01:25]} 35. Rb1 {[%emt 0:11:23]} Nb4 {[%emt 0:01:39]} 36. Rc1 {[%emt 0:06:14]} Rb2 {[%emt 0:03:52]} 37. Rc7 {[%emt 0:02:17]} Rxb3+ {[%emt 0:00:06]} 38. Kh2 {[%emt 0:00:12]} Na6 {[%emt 0:00:27]} 39. Rc4 {[%emt 0:00:18]} Nc5 {[%emt 0:00:10]} 40. Nf3 {[%emt 0:01:03]} Ra3 {[%emt 0:00:12]} 41. g5 {[%emt 0:30:32]} hxg5 {[%emt 0:30:11]} 42. fxg5 {[%emt 0:00:09]} Bg7 {[%emt 0:00:54]} 43. Rh4+ {[%emt 0:01:57]} Kg8 {[%emt 0:00:15]} 44. Nd2 {[%emt 0:00:36]} Rxa4 {[%emt 0:00:11]} 45. Rxa4 {[%emt 0:00:16]} Nxa4 {[%emt 0:00:02]} 46. Nb3 {[%emt 0:00:21]} b6 {[%emt 0:00:23]} 47. Bf1 {[%emt 0:00:11]} Nc3 {[%emt 0:00:29]} 48. Bc4 {[%emt 0:00:06]} a5 {[%emt 0:00:23]} 49. Nc1 {[%emt 0:00:26]} b5 {[%emt 0:00:06]} 50. Bb3 {[%emt 0:00:10]} a4 {[%emt 0:00:04]} 51. Bc2 {[%emt 0:00:08]} b4 {[%emt 0:00:06]} 52. Kg2 {[%emt 0:00:11]} b3 {[%emt 0:00:23]} 53. Nxb3 {[%emt 0:00:19]} axb3 {[%emt 0:00:03]} 54. Bxb3 {[%emt 0:00:09]} Kf8 {[%emt 0:00:02]} 55. Kf3 {[%emt 0:00:11]} Be5 {[%emt 0:00:26]} 56. h4 {[%emt 0:00:09]} Nb5 {[%emt 0:00:11]} 57. Kg4 {[%emt 0:00:11]} Nd4 {[%emt 0:00:07]} 58. Ba2 {[%emt 0:00:09]} f5+ {[%emt 0:01:23]} 59. gxf6 {[%emt 0:00:44]} Bxf6 {[%emt 0:00:26]} 60. Bb1 {[%emt 0:00:16]} Kf7 {[%emt 0:00:07]} 61. Be4 {[%emt 0:00:42]} Nf5 {[%emt 0:01:33]} 62. h5 {[%emt 0:00:54]} Nh6+ {[%emt 0:00:21]} 63. Kf4 {[%emt 0:00:25]} gxh5 {[%emt 0:00:04]} 64. Bf3 {[%emt 0:00:46]} Ng4 {[%emt 0:00:12]} 65. Be4 {[%emt 0:00:21]} Nf2 {[%emt 0:00:22]} 66. Bf5 {[%emt 0:00:12]} Nd1 {[%emt 0:00:43]} 67. Be6+ {[%emt 0:00:11]} Kg6 {[%emt 0:00:03]} 68. Bf5+ {[%emt 0:00:16]} Kh6 {[%emt 0:00:03]} 69. Be6 {[%emt 0:00:10]} Nc3 {[%emt 0:00:06]} 70. Kf5 {[%emt 0:00:12]} h4 {[%emt 0:00:24]} 71. Kf4 {[%emt 0:00:09]} Bg5+ {[%emt 0:00:36]} 72. Kg4 {[%emt 0:00:07]} Kg6 {[%emt 0:00:08]} 73. Kf3 {[%emt 0:00:45]} Kf6 {[%emt 0:00:06]} 0-1

[Event "58th Akiba Rubinstein D 2022"]
[Site "Polanica-Zdroj"]
[Date "2022.08.15"]
[Round "3.29"]
[White "Wziatek, Marek"]
[Black "Gawlik, Pawel"]
[Result "1-0"]
[ECO "A13"]
[WhiteElo "1617"]
[BlackElo "1311"]
[Annotator "NA RC"]
[PlyCount "75"]
[EventDate "2022.08.13"]
[EventCountry "POL"]
[SourceTitle "playchess.com"]
[Source "ChessBase"]
[SourceQuality "1"]
[TimeControl "40/5400+30:1800+30"]

1. c4 {[%emt 0:00:05]} e6 {[%emt 0:00:09]} 2. Nf3 {[%emt 0:00:29]} d5 3. e3 c5 4. cxd5 exd5 {[%emt 0:03:35]} 5. d4 {[%emt 0:01:06]} Nc6 {[%emt 0:00:49]} 6. Be2 {[%emt 0:01:31]} Nf6 {[%emt 0:01:37]} 7. O-O {[%emt 0:00:15]} c4 {[%emt 0:00:28]} 8. a4 Na5 {[%emt 0:08:07]} 9. Nfd2 {[%emt 0:02:48]} Qb6 {[%emt 0:03:56]} 10. Nc3 {[%emt 0:00:56]} Bb4 {[%emt 0:01:53]} 11. Bf3 {[%emt 0:01:53]} Bxc3 {[%emt 0:06:39]} 12. bxc3 {[%emt 0:00:17]} O-O {[%emt 0:00:24]} 13. Rb1 {[%emt 0:00:32]} Qc6 14. Ba3 {[%emt 0:08:26]} Re8 {[%emt 0:05:26]} 15. Bb4 {[%emt 0:00:05]} Qc7 16. Bxa5 Qxa5 17. Qc2 a6 {[%emt 0:12:50]} 18. e4 {[%emt 0:01:59]} dxe4 {[%emt 0:16:57]} 19. Nxc4 {[%emt 0:02:05]} Qg5 {[%emt 0:03:38]} 20. Bd1 {[%emt 0:15:34]} Bh3 21. Ne3 {[%emt 0:06:25]} Nd5 {[%emt 0:13:35]} 22. Kh1 {[%emt 0:00:36]} Nxe3 {[%emt 0:05:16]} 23. fxe3 {[%emt 0:00:09]} Bc8 {[%emt 0:00:44]} 24. Qf2 {[%emt 0:01:00]} f6 {[%emt 0:01:43]} 25. c4 {[%emt 0:03:49]} Rb8 26. Qf4 {[%emt 0:07:07]} Qxf4 {[%emt 0:02:29]} 27. Rxf4 {[%emt 0:00:01]} Bd7 {[%emt 0:02:38]} 28. Rb6 {[%emt 0:05:39]} Bc6 {[%emt 0:03:32]} 29. Rf2 {[%emt 0:00:47]} Rec8 {[%emt 0:01:42]} 30. Rfb2 {[%emt 0:02:44]} Kf8 {[%emt 0:03:10]} 31. Kg1 {[%emt 0:00:21]} Ke8 {[%emt 0:01:02]} 32. a5 {[%emt 0:07:11]} Kd8 {[%emt 0:00:38]} 33. Be2 {[%emt 0:03:44]} f5 {[%emt 0:01:37]} 34. h4 {[%emt 0:00:17]} g6 {[%emt 0:00:12]} 35. Kf2 {[%emt 0:00:14]} Ke8 {[%emt 0:00:53]} 36. Kg1 Kd8 37. Kf2 Ke8 38. Kg3 1-0

[Event "58th Akiba Rubinstein D 2022"]
[Site "Polanica-Zdroj"]
[Date "2022.08.15"]
[Round "3.30"]
[White "Mazus, Jakub"]
[Black "Butkiewicz, Jan"]
[Result "0-1"]
[ECO "B35"]
[WhiteElo "1241"]
[BlackElo "1613"]
[Annotator "NA RC"]
[PlyCount "102"]
[EventDate "2022.08.13"]
[EventCountry "POL"]
[SourceTitle "playchess.com"]
[Source "ChessBase"]
[SourceQuality "1"]
[TimeControl "40/5400+30:1800+30"]

1. e4 {[%emt 0:00:03]} c5 {[%emt 0:00:09]} 2. Nf3 {[%emt 0:00:05]} Nc6 {[%emt 0:00:13]} 3. d4 {[%emt 0:00:07]} cxd4 {[%emt 0:00:05]} 4. Nxd4 {[%emt 0:00:05]} g6 5. Nc3 {[%emt 0:00:42]} Bg7 {[%emt 0:00:10]} 6. Be3 {[%emt 0:00:06]} Nf6 {[%emt 0:00:04]} 7. Bc4 {[%emt 0:03:56]} O-O {[%emt 0:00:06]} 8. Bb3 {[%emt 0:01:38]} a5 {[%emt 0:00:06]} 9. a4 {[%emt 0:06:38]} Ng4 {[%emt 0:00:50]} 10. Nxc6 {[%emt 0:06:09]} Nxe3 {[%emt 0:00:28]} 11. Nxd8 {[%emt 0:00:33]} Nxd1 12. Rxd1 {[%emt 0:00:25]} Rxd8 {[%emt 0:01:15]} 13. Nd5 {[%emt 0:01:09]} e6 {[%emt 0:02:47]} 14. Nb6 {[%emt 0:01:29]} Rb8 15. Bc4 {[%emt 0:21:35]} Bxb2 {[%emt 0:02:31]} 16. Bb5 {[%emt 0:01:29]} Bc3+ {[%emt 0:06:28]} 17. Ke2 {[%emt 0:00:49]} d6 {[%emt 0:00:32]} 18. Rd3 {[%emt 0:02:50]} Bb4 {[%emt 0:01:55]} 19. Rhd1 {[%emt 0:01:46]} Kf8 {[%emt 0:04:12]} 20. Nc4 {[%emt 0:01:35]} Ke7 {[%emt 0:02:48]} 21. c3 {[%emt 0:00:41]} Bc5 {[%emt 0:00:22]} 22. Nxa5 {[%emt 0:01:25]} Bd7 {[%emt 0:11:37]} 23. Rb1 {[%emt 0:06:19]} b6 {[%emt 0:01:10]} 24. Bxd7 Kxd7 {[%emt 0:02:05]} 25. Nc4 {[%emt 0:07:59]} Kc7 {[%emt 0:07:40]} 26. Nd2 {[%emt 0:06:23]} Ra8 {[%emt 0:07:43]} 27. Ra1 {[%emt 0:00:21]} Ra7 {[%emt 0:02:20]} 28. Nb3 Rda8 {[%emt 0:07:38]} 29. Nxc5 {[%emt 0:01:51]} dxc5 {[%emt 0:04:48]} 30. Rad1 {[%emt 0:02:14]} Rxa4 {[%emt 0:00:15]} 31. Rd7+ {[%emt 0:00:44]} Kc6 {[%emt 0:00:04]} 32. R1d6+ {[%emt 0:01:35]} Kb5 {[%emt 0:00:17]} 33. Kd3 {[%emt 0:00:53]} R4a7 34. c4+ {[%emt 0:03:34]} Ka6 {[%emt 0:16:01]} 35. Kc3 {[%emt 0:02:11]} Rxd7 {[%emt 0:00:35]} 36. Rxd7 {[%emt 0:00:07]} Ra7 {[%emt 0:00:04]} 37. Rd8 {[%emt 0:01:23]} h5 {[%emt 0:04:31]} 38. h4 {[%emt 0:01:15]} Kb7 {[%emt 0:00:28]} 39. Rf8 {[%emt 0:02:06]} Kc6 {[%emt 0:00:31]} 40. Rc8+ {[%emt 0:00:41]} Kd6 {[%emt 0:01:49]} 41. Rb8 Ra6 {[%emt 0:31:28]} 42. Rb7 {[%emt 0:31:08]} f5 {[%emt 0:02:42]} 43. Rg7 {[%emt 0:00:29]} Ra2 44. exf5 {[%emt 0:02:57]} gxf5 {[%emt 0:02:51]} 45. f3 {[%emt 0:00:08]} Ke5 {[%emt 0:01:11]} 46. Rg5 {[%emt 0:00:55]} Ra3+ {[%emt 0:01:11]} 47. Kc2 {[%emt 0:01:15]} Kd4 {[%emt 0:00:52]} 48. Rxh5 {[%emt 0:02:49]} Kxc4 {[%emt 0:00:37]} 49. Rh6 {[%emt 0:00:56]} Ra2+ {[%emt 0:01:04]} 50. Kd1 Rxg2 {[%emt 0:01:33]} 51. Rxe6 {[%emt 0:00:34]} b5 {[%emt 0:00:10]} 0-1

[Event "58th Akiba Rubinstein D 2022"]
[Site "Polanica-Zdroj"]
[Date "2022.08.16"]
[Round "4.1"]
[White "Jasiulewicz, Dawid"]
[Black "Straszewski, Tomasz"]
[Result "1-0"]
[ECO "A44"]
[WhiteElo "1525"]
[BlackElo "1716"]
[Annotator "NA RC"]
[PlyCount "101"]
[EventDate "2022.08.13"]
[EventCountry "POL"]
[SourceTitle "playchess.com"]
[Source "ChessBase"]
[SourceQuality "1"]
[TimeControl "40/5400+30:1800+30"]

1. d4 {[%emt 0:00:03]} c5 {[%emt 0:00:29]} 2. d5 {[%emt 0:00:08]} e5 {[%emt 0:00:14]} 3. e4 {[%emt 0:00:43]} d6 {[%emt 0:00:07]} 4. c4 {[%emt 0:00:25]} g6 {[%emt 0:00:07]} 5. Nf3 {[%emt 0:01:33]} Bg7 {[%emt 0:00:17]} 6. Nc3 {[%emt 0:01:15]} Ne7 {[%emt 0:00:07]} 7. Be2 {[%emt 0:04:45]} O-O {[%emt 0:01:19]} 8. h4 {[%emt 0:00:33]} Bg4 {[%emt 0:02:02]} 9. Be3 {[%emt 0:05:22]} Bxf3 {[%emt 0:03:11]} 10. Bxf3 {[%emt 0:00:26]} f5 {[%emt 0:00:06]} 11. h5 {[%emt 0:08:06]} f4 {[%emt 0:02:56]} 12. Bd2 {[%emt 0:00:41]} g5 {[%emt 0:00:47]} 13. Bg4 {[%emt 0:03:38]} h6 {[%emt 0:01:03]} 14. Qa4 {[%emt 0:01:53]} Na6 {[%emt 0:01:59]} 15. a3 {[%emt 0:03:08]} Kh8 {[%emt 0:02:01]} 16. Qd7 {[%emt 0:02:14]} Qxd7 {[%emt 0:02:24]} 17. Bxd7 {[%emt 0:00:05]} Rfd8 {[%emt 0:02:36]} 18. Bg4 {[%emt 0:00:54]} Ng8 {[%emt 0:02:36]} 19. f3 {[%emt 0:03:44]} Nf6 {[%emt 0:01:16]} 20. Bf5 {[%emt 0:00:45]} Kg8 {[%emt 0:01:34]} 21. g4 {[%emt 0:18:03]} Kf8 {[%emt 0:11:23]} 22. Nb5 {[%emt 0:06:05]} b6 {[%emt 0:00:06]} 23. Ke2 {[%emt 0:01:25]} Ke7 {[%emt 0:02:12]} 24. b4 {[%emt 0:05:31]} Ne8 {[%emt 0:00:25]} 25. Rhb1 Rdb8 {[%emt 0:05:56]} 26. a4 {[%emt 0:06:18]} Rb7 {[%emt 0:11:33]} 27. a5 {[%emt 0:06:30]} bxa5 {[%emt 0:21:55]} 28. Rxa5 {[%emt 0:05:46]} Nxb4 {[%emt 0:04:32]} 29. Bxb4 {[%emt 0:04:14]} cxb4 {[%emt 0:00:01]} 30. Kd3 {[%emt 0:01:19]} a6 {[%emt 0:02:46]} 31. Rxb4 {[%emt 0:03:22]} Rb6 {[%emt 0:04:02]} 32. Na7 {[%emt 0:00:46]} Rxb4 {[%emt 0:01:25]} 33. Nc6+ {[%emt 0:00:05]} Kf8 {[%emt 0:00:53]} 34. Nxb4 {[%emt 0:00:05]} Rb8 {[%emt 0:01:39]} 35. Kc3 {[%emt 0:00:55]} Nc7 {[%emt 0:00:47]} 36. Bd7 {[%emt 0:02:27]} Ra8 {[%emt 0:03:25]} 37. Kb3 {[%emt 0:02:49]} Bf6 {[%emt 0:00:10]} 38. Bc6 {[%emt 0:00:57]} Rb8 {[%emt 0:00:49]} 39. Ka4 {[%emt 0:01:02]} Rb6 {[%emt 0:00:57]} 40. c5 {[%emt 0:00:45]} dxc5 {[%emt 0:00:35]} 41. Rxc5 {[%emt 0:30:02]} Be7 {[%emt 0:32:28]} 42. Rc4 {[%emt 0:00:01]} Ne8 {[%emt 0:04:04]} 43. Bxe8 {[%emt 0:01:29]} Kxe8 {[%emt 0:00:01]} 44. Nd3 {[%emt 0:01:11]} Bd6 {[%emt 0:01:24]} 45. Nc5 {[%emt 0:00:45]} Ke7 {[%emt 0:01:28]} 46. Rc3 {[%emt 0:00:35]} Kd8 {[%emt 0:00:41]} 47. Nd3 {[%emt 0:00:32]} Kd7 {[%emt 0:00:24]} 48. Ka5 {[%emt 0:00:25]} Bc7 {[%emt 0:00:32]} 49. Nc5+ {[%emt 0:00:40]} Kd6 {[%emt 0:00:35]} 50. Nxa6 {[%emt 0:00:32]} Rc6+ {[%emt 0:00:06]} 51. Nxc7 {[%emt 0:00:04]} 1-0

[Event "58th Akiba Rubinstein D 2022"]
[Site "Polanica-Zdroj"]
[Date "2022.08.16"]
[Round "4.2"]
[White "Gibala, Adam"]
[Black "Zerebiec, Maurycy"]
[Result "1/2-1/2"]
[ECO "C02"]
[WhiteElo "1549"]
[BlackElo "1915"]
[Annotator "TA"]
[PlyCount "171"]
[EventDate "2022.08.13"]
[EventCountry "POL"]
[SourceTitle "playchess.com"]
[Source "ChessBase"]
[SourceQuality "1"]
[TimeControl "40/5400+30:1800+30"]

{[%evp 9,171,30,32,18,22,2,10,10,75,-23,59,77,57,24,7,-8,-14,-23,-20,-34,3,20,2,2,16,-16,-11,-20,-12,-10,-14,-12,-16,-16,-17,-20,-10,-50,-28,-12,-10,-58,0,0,0,0,0,4,7,0,0,0,22,24,25,26,72,75,63,44,61,15,50,16,16,16,16,16,99,95,78,8,86,0,0,0,0,0,0,0,0,0,0,0,0,0,0,0,0,0,0,0,0,0,0,0,0,0,0,0,0,0,0,0,0,-48,-8,-38,-46,-33,-35,-56,0,0,0,0,0,0,0,0,0,0,0,0,0,0,0,0,0,0,0,0,0,0,0,0,0,0,0,0,0,0,0,0,0,0,0,0,0,0,0,0,0,0,0,0,0,0,0,0,0,0,0,0]} 1. e4 {[%emt 0:00:02]} e6 {[%emt 0:03:29]} 2. d4 d5 {[%emt 0:00:15]} 3. e5 {[%emt 0:00:08]} c5 {[%emt 0:00:11]} 4. c3 {[%emt 0:00:04]} Qd7 {[%emt 0:00:03]} 5. Nf3 {[%emt 0:00:19]} b6 {[%emt 0:00:01]} 6. Be2 {[%emt 0:00:20] C02: French: Advance Variation.} Ba6 {[%emt 0:00:01]} 7. O-O {[%emt 0:00:16]} Ne7 {[%emt 0:00:06] [#]} 8. b4 $146 {[%emt 0:02:38]} ({Predecessor:} 8. a4 Nec6 {½-½ (8) Sapale,S (2308)-Drazic,S (2441) Novi Sad 2018}) 8... h5 {[%emt 0:03:43]} (8... cxb4 $11 9. cxb4 Bxe2 10. Qxe2 Nbc6) 9. Ba3 {[%emt 0:03:09]} (9. dxc5 $16 bxc5 10. bxc5) 9... Nf5 {[%emt 0:00:29]} (9... cxb4 $11 10. Bxb4 Bxe2 11. Qxe2 Nbc6) 10. bxc5 $14 {[%emt 0:00:24]} bxc5 {[%emt 0:00:18]} 11. Bxa6 {[%emt 0:00:16]} Nxa6 {[%emt 0:00:03]} 12. Nbd2 {[%emt 0:01:34]} (12. Qe2 $5 {[%cal Re2a6]} Qa4 13. Rc1 $11) 12... Be7 {[%emt 0:05:01]} 13. Qe2 {[%emt 0:02:54]} Qa4 {[%emt 0:01:18][%csl LRa3,LRd4]} 14. Bxc5 {[%emt 0:00:52]} Bxc5 {[%emt 0:01:16]} 15. dxc5 {[%emt 0:00:07]} Nxc5 {[%emt 0:00:48]} 16. c4 {[%emt 0:00:39]} d4 {[%emt 0:00:59][%cal Bd5d4,Bd4d3][%mdl 32]} 17. Ne4 {[%emt 0:03:47]} d3 {[%emt 0:02:55]} 18. Qe1 {[%emt 0:02:59]} Qxc4 {[%emt 0:00:47]} 19. Nxc5 {[%emt 0:00:35]} Qxc5 {[%emt 0:00:09]} 20. Qe4 {[%emt 0:00:08][%csl LRa8,LRd3] Inhibits Nd4.} O-O {[%emt 0:07:59] next ...Rfd8 is good for Black.} 21. Qxd3 {[%emt 0:00:06]} Rfd8 {[%emt 0:00:18]} 22. Qe4 {[%emt 0:00:45]} Rac8 {[%emt 0:03:05]} 23. Qf4 {[%emt 0:01:32]} Qc4 {[%emt 0:00:11]} (23... Nd4 $5 {[%cal Rd4e2]} 24. Rae1 Nxf3+ 25. Qxf3 g6 $15) 24. Qg5 {[%emt 0:00:14]} Qg4 {[%emt 0:00:03]} 25. Rfb1 {[%emt 0:01:01]} (25. Rfd1 $11 Qxg5 26. Nxg5) 25... Qxg5 {[%emt 0:01:44]} (25... Nd4 $15 26. Qxg4 hxg4 27. Nxd4 Rxd4) 26. Nxg5 $11 {[%emt 0:00:10]} Rd7 {[%emt 0:00:11] Against Rb7} 27. Rb2 {[%emt 0:00:29]} Rdc7 {[%emt 0:00:32] ( -> ...Rc1+)} 28. g3 {[%emt 0:00:10]} g6 {[%emt 0:03:26]} 29. Rab1 {[%emt 0:00:44]} Nh6 {[%emt 0:01:20]} 30. h3 {[%emt 0:00:41]} Nf5 {[%emt 0:00:22]} 31. Rb7 {[%emt 0:00:28]} Nd4 {[%emt 0:00:06]} 32. Kg2 {[%emt 0:01:35]} Nc6 {[%emt 0:00:38]} (32... h4 $11 {was preferrable.}) 33. Rxc7 $16 {[%emt 0:00:48] White is more active.} Rxc7 {[%emt 0:00:02][%mdl 4096] Endgame KRN-KRN} 34. Rc1 {[%emt 0:01:01]} Rc8 {[%emt 0:03:00]} 35. f4 {[%emt 0:00:19]} (35. Kf1 $14) 35... Kf8 {[%emt 0:00:25]} 36. Ne4 {[%emt 0:00:29]} Ne7 {[%emt 0:00:17]} 37. Rxc8+ {[%emt 0:00:10]} Nxc8 $11 {[%emt 0:00:04] KN-KN} 38. Kf3 {[%emt 0:00:31]} Ke7 {[%emt 0:00:16] [#]} (38... Ne7 $11) 39. Ke3 $1 $16 {[%emt 0:00:05]} Nb6 {[%emt 0:00:17]} 40. Kd4 {[%emt 0:00:09]} (40. h4 $16) 40... Nd5 {[%emt 0:00:08] [#]} (40... h4 $1 $11 {keeps the balance.}) 41. a3 {[%emt 0:30:05]} (41. h4 $1 $16) 41... h4 $11 {[%emt 0:30:08]} 42. gxh4 {[%emt 0:01:09]} Nxf4 {[%emt 0:00:15]} 43. Ng5 {[%emt 0:00:07]} Ng2 {[%emt 0:04:20]} 44. Nf3 {[%emt 0:00:16]} Nf4 {[%emt 0:01:24]} 45. Ng5 {[%emt 0:00:07]} Nd5 {[%emt 0:04:45]} 46. a4 {[%emt 0:00:27]} f6 {[%emt 0:01:09]} 47. Ne4 {[%emt 0:02:15]} f5 {[%emt 0:00:25]} 48. Nd6 {[%emt 0:00:42]} Kd7 {[%emt 0:00:49] Against Nc8} 49. Nf7 {[%emt 0:00:45]} Nf4 {[%emt 0:04:53]} 50. Ng5 {[%emt 0:00:53]} Ng2 {[%emt 0:02:56]} 51. Nf3 {[%emt 0:00:35]} Kc6 {[%emt 0:01:11]} 52. Kc4 {[%emt 0:01:19]} Kb6 {[%emt 0:08:45]} 53. Kb4 {[%emt 0:01:03]} Nf4 {[%emt 0:01:32]} 54. a5+ {[%emt 0:04:08]} Kc6 {[%emt 0:03:06] Hoping for ...Kd5.} 55. Kc4 {[%emt 0:01:06]} Nxh3 {[%emt 0:02:32]} 56. Nd4+ {[%emt 0:00:06]} Kd7 {[%emt 0:00:08]} 57. a6 {[%emt 0:01:08]} (57. Kb5 $11) 57... g5 {[%emt 0:06:21]} 58. h5 {[%emt 0:01:12][%cal Bh4h5,Bh5h6,Bh6h7][%mdl 32] Threatens to win with h6.} g4 {[%emt 0:02:56] White must now prevent ...g3.} 59. h6 {[%emt 0:00:07] h7 would kill now.} Ng5 {[%emt 0:00:02] ...g3 is the strong threat.} 60. Kd3 {[%emt 0:00:18]} Nf7 {[%emt 0:00:59]} ({Black should try} 60... f4 $15 61. Ne2 f3) 61. h7 {[%emt 0:00:15] The position is equal.} Nxe5+ {[%emt 0:00:12]} 62. Ke3 {[%emt 0:00:35]} Ng6 {[%emt 0:00:05]} 63. Nb5 {[%emt 0:00:33]} f4+ {[%emt 0:05:13]} 64. Ke2 {[%emt 0:00:46]} Kc6 {[%emt 0:00:45]} 65. Nxa7+ {[%emt 0:00:07]} Kb6 {[%emt 0:00:02]} 66. Nb5 {[%emt 0:00:15]} e5 {[%emt 0:00:36]} (66... Kxb5 67. a7 Kc4 68. a8=Q f3+ 69. Kf1 Kc5 70. Qe4 Nh8 71. Qe5+ Kc4 72. Qxh8) 67. a7 {[%emt 0:00:05]} Kb7 {[%emt 0:00:01]} 68. Nd6+ {[%emt 0:00:34]} Kxa7 {[%emt 0:00:03]} 69. Nf7 {[%emt 0:00:10][%cal Of7e5] And now Nxe5! would win.} e4 {[%emt 0:00:06]} 70. Ne5 {[%emt 0:00:42]} Nh8 {[%emt 0:01:03]} 71. Nxg4 {[%emt 0:00:05]} Kb7 {[%emt 0:01:22]} 72. Nf6 {[%emt 0:00:07]} Kc6 {[%emt 0:00:34]} 73. Nxe4 {[%emt 0:00:04]} Kd5 {[%emt 0:00:11]} 74. Kf3 {[%emt 0:00:18]} Ke5 {[%emt 0:00:02]} 75. Ng5 {[%emt 0:00:10]} Kf5 {[%emt 0:00:15]} 76. Nh3 {[%emt 0:00:11]} Kg6 {[%emt 0:00:07]} 77. Kxf4 {[%emt 0:00:07]} Kxh7 {[%emt 0:00:06]} 78. Kf5 {[%emt 0:00:21]} Kg7 {[%emt 0:00:10]} 79. Ng5 {[%emt 0:01:31]} Ng6 {[%emt 0:00:06]} 80. Ne6+ {[%emt 0:00:16]} Kh6 {[%emt 0:00:02]} 81. Nc7 {[%emt 0:00:11]} Ne7+ {[%emt 0:00:08]} 82. Ke6 {[%emt 0:00:11]} Ng6 {[%emt 0:00:06]} 83. Ne8 {[%emt 0:00:09]} Kg5 {[%emt 0:00:05]} 84. Nd6 {[%emt 0:00:09]} Nf4+ {[%emt 0:00:04]} 85. Kd7 {[%emt 0:00:11]} Kg4 {[%emt 0:00:08]} 86. Ne4 {[%emt 0:00:08] Weighted Error Value: White=0.14 (very precise) /Black=0.17 (very precise)} 1/2-1/2

[Event "58th Akiba Rubinstein D 2022"]
[Site "Polanica-Zdroj"]
[Date "2022.08.16"]
[Round "4.3"]
[White "Bem, Tymoteusz"]
[Black "Meizlin, Yaacov"]
[Result "1/2-1/2"]
[ECO "D58"]
[WhiteElo "1679"]
[BlackElo "1938"]
[Annotator "NA RC"]
[PlyCount "109"]
[EventDate "2022.08.13"]
[EventCountry "POL"]
[SourceTitle "playchess.com"]
[Source "ChessBase"]
[SourceQuality "1"]
[TimeControl "40/5400+30:1800+30"]

1. d4 {[%emt 0:00:10]} d5 {[%emt 0:00:12]} 2. c4 {[%emt 0:00:18]} e6 {[%emt 0:00:19]} 3. Nc3 {[%emt 0:00:15]} Nf6 {[%emt 0:00:12]} 4. Nf3 {[%emt 0:00:17]} Be7 {[%emt 0:00:13]} 5. Bg5 {[%emt 0:00:16]} h6 {[%emt 0:00:21]} 6. Bh4 {[%emt 0:01:09]} O-O {[%emt 0:00:53]} 7. e3 {[%emt 0:00:20]} b6 {[%emt 0:01:57]} 8. cxd5 {[%emt 0:00:24]} exd5 {[%emt 0:00:13]} 9. Bd3 {[%emt 0:04:56]} Be6 {[%emt 0:03:26]} 10. O-O {[%emt 0:05:13]} c5 {[%emt 0:12:03]} 11. Rc1 {[%emt 0:05:46]} a6 {[%emt 0:11:49]} 12. Ne5 {[%emt 0:13:51]} Nfd7 $1 {[%emt 0:07:36]} 13. Bxe7 {[%emt 0:06:34]} Qxe7 {[%emt 0:00:03]} 14. Nf3 {[%emt 0:24:53]} Nc6 {[%emt 0:07:21]} 15. Bb1 {[%emt 0:00:38]} Rfd8 {[%emt 0:23:30] [#]} 16. dxc5 $1 {[%emt 0:03:02]} Nxc5 $16 {[%emt 0:00:14]} 17. Nd4 {[%emt 0:03:26]} Rac8 {[%emt 0:11:45]} 18. Nxc6 {[%emt 0:03:38]} Rxc6 {[%emt 0:00:01]} 19. Qd4 {[%emt 0:01:53]} g6 {[%emt 0:04:07]} 20. Rfd1 {[%emt 0:01:30]} Rcd6 {[%emt 0:01:17]} 21. Qf4 {[%emt 0:05:02]} Qg5 {[%emt 0:00:48]} 22. Qxg5 {[%emt 0:01:04]} hxg5 {[%emt 0:00:02]} 23. Ne2 {[%emt 0:01:12]} Bc8 {[%emt 0:04:12]} 24. Nd4 {[%emt 0:00:50]} Bb7 25. b4 {[%emt 0:01:08]} Ne4 {[%emt 0:01:39]} 26. f3 Nf6 {[%emt 0:00:09]} 27. Rc7 {[%emt 0:02:09]} R8d7 {[%emt 0:00:11]} 28. Rdc1 {[%emt 0:00:15]} Kf8 {[%emt 0:00:18]} 29. Kf2 {[%emt 0:02:24]} Rxc7 {[%emt 0:01:30]} 30. Rxc7 {[%emt 0:00:09]} Rd7 {[%emt 0:00:03]} 31. Rc3 {[%emt 0:02:12]} Ke7 {[%emt 0:00:09]} 32. Bd3 {[%emt 0:00:09]} Ne8 33. Kg3 {[%emt 0:04:07]} Rc7 {[%emt 0:02:57]} 34. Ra3 {[%emt 0:01:56]} b5 {[%emt 0:00:04]} 35. Ne2 {[%emt 0:01:12]} Nd6 {[%emt 0:00:16]} 36. Rc3 {[%emt 0:00:28]} Rxc3 {[%emt 0:01:48]} 37. Nxc3 {[%emt 0:00:05]} Nc4 {[%emt 0:01:01]} 38. e4 {[%emt 0:00:59]} Ne5 {[%emt 0:01:04]} 39. Bc2 {[%emt 0:00:40]} d4 {[%emt 0:00:21]} 40. Nb1 {[%emt 0:01:01]} Bc8 41. Nd2 {[%emt 0:30:45]} Be6 {[%emt 0:31:39]} 42. a4 {[%emt 0:01:54]} d3 {[%emt 0:00:45]} 43. Bd1 {[%emt 0:00:29]} Nc6 {[%emt 0:00:14]} 44. axb5 {[%emt 0:00:40]} axb5 {[%emt 0:00:01]} 45. Kf2 {[%emt 0:00:26]} Nxb4 {[%emt 0:00:33]} 46. Ke3 {[%emt 0:00:28]} Bc4 {[%emt 0:00:49]} 47. Nxc4 {[%emt 0:00:37]} bxc4 {[%emt 0:00:01]} 48. Kd4 {[%emt 0:00:00]} Nc2+ {[%emt 0:00:02]} 49. Kc3 {[%emt 0:00:43]} Ne3 {[%emt 0:00:36]} 50. Ba4 {[%emt 0:00:01]} Nxg2 {[%emt 0:02:26]} 51. Kxc4 {[%emt 0:00:37]} d2 {[%emt 0:00:29]} 52. Kd3 {[%emt 0:00:38]} Ne1+ 53. Ke2 Ke6 54. Bd1 Ke5 55. Kxd2 1/2-1/2